bitfinex-derivatives/quotes_BNBF0:USTF0_20250316
["timestamp","ask_amount","ask_price","bid_price","bid_amount"]
[1742133729220,0.33439224,598.1,597.04,1.70808875]
[1742133729424,0.33439224,598.1,597.05,2.61264935]
[1742133729623,0.33439224,598.1,597.06,2.61264935]
[1742133729825,0.33439224,598.1,597.07,1.40057799]
[1742133730024,0.33439224,598.1,597.08,1.40057799]
[1742133730222,0.33439224,598.1,597.09,1.40057799]
[1742133730422,0.33439224,598.1,597.1,1.02977786]
[1742133730620,0.33439224,598.1,597.11,1.02977786]
[1742133730823,0.33439224,598.1,597.12,1.02977786]
[1742133731123,0.684,598.09,597.12,1.02977786]
[1742133731325,0.33440342,598.08,597.13,1.21207136]
[1742133731522,0.33440342,598.08,597.14,1.02977786]
[1742133731825,0.33440342,598.08,597.15,1.21207136]
[1742133732027,0.33440342,598.08,597.16,1.02977786]
[1742133732430,0.33440342,598.08,597.17,1.21207136]
[1742133732830,0.33440342,598.08,597.0,0.863]
[1742133733030,0.33440342,598.08,597.01,1.70833529]
[1742133733231,0.33440342,598.08,597.02,1.40076497]
[1742133733427,0.33440342,598.08,597.01,1.2120994]
[1742133733428,0.33440342,598.08,597.03,1.4008801]
[1742133733635,0.33440342,598.08,597.04,1.0298729]
[1742133734025,0.33440342,598.08,597.05,1.2120994]
[1742133735134,0.33440342,598.08,597.0,0.863]
[1742133743039,0.33440342,598.08,597.01,1.21237146]
[1742133743341,0.33440342,598.08,597.02,1.21237146]
[1742133743944,0.33440342,598.08,597.03,1.03019604]
[1742133744246,0.33440342,598.08,597.01,1.21237146]
[1742133744445,0.33440342,598.08,597.02,1.03031873]
[1742133744644,0.33440342,598.08,597.03,1.03031873]
[1742133744844,0.33440342,598.08,597.03,1.21237146]
[1742133745442,0.33440342,598.08,597.01,1.21237146]
[1742133746746,0.33440342,598.08,597.02,1.03028447]
[1742133746949,0.33440342,598.08,597.03,1.21237146]
[1742133747747,0.33440342,598.08,597.01,1.21237146]
[1742133748547,0.33440342,598.08,597.0,0.863]
[1742133751749,0.33440342,598.08,597.01,2.24238001]
[1742133751950,0.33440342,598.08,597.01,1.21233081]
[1742133752950,0.33440342,598.08,597.02,1.21233081]
[1742133753159,0.33440342,598.08,597.0,0.863]
[1742133753450,1.01840342,598.08,596.6,0.29124142]
[1742133753651,1.01840342,598.08,596.61,2.04391236]
[1742133753853,1.01840342,598.08,596.62,1.708685]
[1742133754045,1.01840342,598.08,596.63,1.708685]
[1742133754251,1.01840342,598.08,596.64,1.708685]
[1742133754451,1.01840342,598.08,596.65,1.708685]
[1742133754652,1.01840342,598.08,596.66,2.92101624]
[1742133754855,1.01840342,598.08,596.67,1.708685]
[1742133755153,1.01840342,598.08,596.68,1.40104801]
[1742133755354,1.01840342,598.08,596.69,1.70868033]
[1742133755556,1.01840342,598.08,596.7,1.70868033]
[1742133755756,1.01840342,598.08,596.71,1.70868033]
[1742133755964,1.01840342,598.08,596.72,2.92101157]
[1742133756159,1.01840342,598.08,596.73,1.70868033]
[1742133756367,1.01840342,598.08,596.74,1.70868033]
[1742133756660,1.01840342,598.08,596.75,1.70868033]
[1742133756864,1.01840342,598.08,596.76,0.37100091]
[1742133757166,1.01840342,598.08,596.77,1.70865594]
[1742133757364,1.01840342,598.08,596.78,1.70865594]
[1742133757670,1.01840342,598.08,596.79,1.70865594]
[1742133757870,1.01840342,598.08,596.8,1.40101396]
[1742133758061,1.01840342,598.08,596.78,1.21233124]
[1742133758062,1.01840342,598.08,596.81,1.03001305]
[1742133758262,1.01840342,598.08,596.82,1.03001305]
[1742133758764,1.01840342,598.08,596.83,1.21233124]
[1742133758963,1.01840342,598.08,596.84,1.03002567]
[1742133759158,1.01840342,598.08,596.85,1.02995188]
[1742133759363,1.01840342,598.08,596.86,1.02995188]
[1742133759564,1.01840342,598.08,596.87,1.02995188]
[1742133759765,1.01840342,598.08,596.88,1.02985552]
[1742133759963,1.01840342,598.08,596.89,2.2421706]
[1742133760174,1.01840342,598.08,596.9,1.02983936]
[1742133760462,1.01840342,598.08,596.89,1.21233124]
[1742133760672,1.01840342,598.08,596.91,1.21233124]
[1742133761367,1.01840342,598.08,596.92,1.21233124]
[1742133762467,1.01840342,598.08,596.73,1.096]
[1742133762662,1.01840342,598.08,596.74,1.02958656]
[1742133762869,1.01840342,598.08,596.75,2.24141652]
[1742133763065,1.01840342,598.08,596.76,1.02958656]
[1742133763266,1.01840342,598.08,596.77,1.02958656]
[1742133763466,1.01840342,598.08,596.78,1.02958656]
[1742133763671,1.01840342,598.08,596.79,2.24141652]
[1742133763863,1.01840342,598.08,596.79,1.21182996]
[1742133764062,1.01840342,598.08,596.8,1.40003857]
[1742133764260,1.01840342,598.08,596.81,1.3999818]
[1742133764472,1.01840342,598.08,596.8,1.21182996]
[1742133764473,1.01840342,598.08,596.82,1.3999818]
[1742133764673,1.01840342,598.08,596.83,1.3999818]
[1742133764973,1.01840342,598.08,596.84,1.70765165]
[1742133765274,1.01840342,598.08,596.85,1.70752007]
[1742133765468,1.01840342,598.08,596.84,1.21182996]
[1742133765469,1.01840342,598.08,596.86,1.70752007]
[1742133765667,1.01840342,598.08,596.87,2.91935003]
[1742133765864,1.01840342,598.08,596.88,1.70752007]
[1742133766064,1.01840342,598.08,596.89,1.70752007]
[1742133766266,1.01840342,598.08,596.9,1.39985022]
[1742133766462,1.01840342,598.08,596.91,1.39985022]
[1742133766769,1.01840342,598.08,596.92,1.39985022]
[1742133766970,1.01840342,598.08,596.93,1.39985022]
[1742133767168,1.01840342,598.08,596.94,1.02914962]
[1742133767369,1.01840342,598.08,596.95,1.02914962]
[1742133767570,1.01840342,598.08,596.96,1.02914962]
[1742133767866,1.01840342,598.08,596.92,1.21182996]
[1742133768070,1.01840342,598.08,596.93,1.02941632]
[1742133768271,1.01840342,598.08,596.73,1.096]
[1742133768272,1.01840342,598.08,596.94,2.24124628]
[1742133768467,1.01840342,598.08,596.95,1.02941632]
[1742133768868,1.01840342,598.08,596.96,1.21182996]
[1742133769368,1.01840342,598.08,596.73,1.096]
[1742133769576,1.01840342,598.08,596.74,1.40051891]
[1742133769773,1.01840342,598.08,596.75,1.7082174]
[1742133769973,1.01840342,598.08,596.76,1.7082174]
[1742133770270,1.01840342,598.08,596.77,2.92013259]
[1742133770470,1.01840342,598.08,596.78,1.70821415]
[1742133770670,1.01840342,598.08,596.79,2.92013259]
[1742133770971,1.01840342,598.08,596.8,1.4005197]
[1742133771171,1.01840342,598.08,596.81,1.4005197]
[1742133771366,1.01840342,598.08,596.82,1.4005197]
[1742133771571,1.01840342,598.08,596.83,1.02964438]
[1742133771773,1.01840342,598.08,596.84,1.02964438]
[1742133772065,1.01840342,598.08,596.81,1.21191844]
[1742133772066,1.01840342,598.08,596.85,2.24156282]
[1742133772269,1.01840342,598.08,596.86,1.02964438]
[1742133772666,1.01840342,598.08,596.87,1.21191844]
[1742133772973,1.01840342,598.08,596.88,1.02964438]
[1742133773469,1.01840342,598.08,596.89,2.24186575]
[1742133773665,1.01840342,598.08,596.9,1.02994731]
[1742133773870,1.01840342,598.08,596.91,1.02994669]
[1742133774071,1.01840342,598.08,596.92,1.21191844]
[1742133774771,1.01840342,598.08,596.74,1.21191844]
[1742133774973,1.01840342,598.08,596.75,1.70870472]
[1742133775171,1.01840342,598.08,596.74,1.21191844]
[1742133775172,1.01840342,598.08,596.76,1.70870472]
[1742133775372,1.01840342,598.08,596.77,1.70870472]
[1742133775671,1.01840342,598.08,596.78,2.92062316]
[1742133775874,1.01840342,598.08,596.79,1.70870472]
[1742133776073,1.01840342,598.08,596.8,1.70870472]
[1742133776273,1.01840342,598.08,596.81,2.92062316]
[1742133776476,1.01840342,598.08,596.82,1.70870472]
[1742133776774,1.01840342,598.08,596.83,2.92061975]
[1742133776974,1.01840342,598.08,596.84,1.33769031]
[1742133777172,1.01840342,598.08,596.85,1.33769031]
[1742133777373,1.01840342,598.08,596.86,1.02999755]
[1742133777578,1.01840342,598.08,596.87,1.02999755]
[1742133777869,1.01840342,598.08,596.88,1.02999755]
[1742133778074,1.01840342,598.08,596.89,1.03021006]
[1742133778275,1.01840342,598.08,596.88,1.21191844]
[1742133778476,1.01840342,598.08,596.89,1.03034792]
[1742133778676,1.01840342,598.08,596.9,1.70914389]
[1742133778878,1.01840342,598.08,596.91,1.70914389]
[1742133779178,1.01840342,598.08,596.92,2.92106233]
[1742133779378,1.01840342,598.08,596.93,1.70914389]
[1742133779575,1.01840342,598.08,596.94,1.70914389]
[1742133779880,1.01840342,598.08,596.95,1.33809355]
[1742133780079,1.01840342,598.08,596.96,1.33809355]
[1742133780378,1.01840342,598.08,596.97,2.55001199]
[1742133780678,1.01840342,598.08,596.98,1.33809355]
[1742133780879,1.01840342,598.08,596.99,0.30764721]
[1742133781078,1.01840342,598.08,596.98,1.21191844]
[1742133781477,1.01840342,598.08,596.74,1.21191844]
[1742133781780,1.01840342,598.08,596.75,1.70987366]
[1742133781980,1.01840342,598.08,596.76,1.70987366]
[1742133782273,1.01840342,598.08,596.77,1.40216234]
[1742133782478,1.01840342,598.08,596.78,1.40216234]
[1742133782679,1.01840342,598.08,596.79,1.03084158]
[1742133782974,1.01840342,598.08,596.8,2.24276002]
[1742133783178,1.01840342,598.08,596.81,1.03084158]
[1742133783573,1.01840342,598.08,596.82,1.21191844]
[1742133783777,1.01840342,598.08,596.83,1.03084158]
[1742133784375,1.01840342,598.08,596.84,0.37158146]
[1742133784572,1.01840342,598.08,596.85,1.40241375]
[1742133784876,1.01840342,598.08,596.86,1.40239278]
[1742133785081,1.01840342,598.08,596.87,1.40239278]
[1742133785279,1.01840342,598.08,596.88,2.61431122]
[1742133785475,1.01840342,598.08,596.89,1.40239278]
[1742133785675,1.01840342,598.08,596.9,1.40239278]
[1742133785878,1.01840342,598.08,596.91,2.61431122]
[1742133786076,1.01840342,598.08,596.92,1.40239278]
[1742133786275,1.01840342,598.08,596.93,2.61431122]
[1742133786579,1.01840342,598.08,596.94,1.40239278]
[1742133786780,1.01840342,598.08,596.95,2.61431122]
[1742133786981,1.01840342,598.08,596.96,1.40239278]
[1742133787181,1.01840342,598.08,596.97,1.40239278]
[1742133787382,1.01840342,598.08,596.98,1.40409939]
[1742133787583,1.01840342,598.08,596.99,1.40409939]
[1742133787879,1.01840342,598.08,597.0,1.03254819]
[1742133788077,1.01840342,598.08,597.01,1.03254819]
[1742133788782,1.01840342,598.08,597.02,1.21191844]
[1742133788980,1.01840342,598.08,597.03,1.03254819]
[1742133789380,1.01840342,598.08,597.04,1.03328129]
[1742133789580,1.01840342,598.08,597.05,1.03328129]
[1742133789780,1.01840342,598.08,597.06,1.03328129]
[1742133790485,1.01840342,598.08,597.07,1.21191844]
[1742133790783,1.01840342,598.08,597.08,1.03328129]
[1742133791483,1.01840342,598.08,597.09,1.21191844]
[1742133792085,1.01840342,598.08,596.74,1.21191844]
[1742133792280,1.01840342,598.08,596.75,1.7137399]
[1742133792485,1.01840342,598.08,596.76,1.40608073]
[1742133792780,1.01840342,598.08,596.77,2.92565806]
[1742133792981,1.01840342,598.08,596.78,1.71373962]
[1742133793179,1.01840342,598.08,596.79,2.92565806]
[1742133793384,1.01840342,598.08,596.8,1.71373962]
[1742133793584,1.01840342,598.08,596.81,1.71373962]
[1742133793785,1.01840342,598.08,596.82,1.71373962]
[1742133794083,1.01840342,598.08,596.83,2.92565806]
[1742133794283,1.01840342,598.08,596.84,1.40608073]
[1742133794480,1.01840342,598.08,596.85,1.71372894]
[1742133794684,1.01840342,598.08,596.86,1.71372894]
[1742133794886,1.01840342,598.08,596.87,1.71372894]
[1742133795087,1.01840342,598.08,596.88,1.71371255]
[1742133795286,1.01840342,598.08,596.89,2.92563099]
[1742133795487,1.01840342,598.08,596.9,1.71415054]
[1742133795681,1.01840342,598.08,596.91,1.40651872]
[1742133795882,1.01840342,598.08,596.92,2.92606898]
[1742133796087,1.01840342,598.08,596.93,1.40651872]
[1742133796283,1.01840342,598.08,596.94,1.40651872]
[1742133796583,1.01840342,598.08,596.95,1.40651872]
[1742133796787,1.01840342,598.08,596.96,1.40651872]
[1742133796981,1.01840342,598.08,596.97,1.40651872]
[1742133797184,1.01840342,598.08,596.98,1.40651872]
[1742133797386,1.01840342,598.08,596.99,1.03418811]
[1742133797583,1.01840342,598.08,597.0,1.40670996]
[1742133797786,1.01840342,598.08,597.01,1.40670996]
[1742133797981,1.01840342,598.08,597.02,2.6186284]
[1742133798186,1.01840342,598.08,597.03,1.40670996]
[1742133798382,1.01840342,598.08,597.04,1.71425123]
[1742133798587,1.01840342,598.08,597.05,1.71425123]
[1742133798782,1.01840342,598.08,597.02,1.21191844]
[1742133798783,1.01840342,598.08,597.06,1.71425123]
[1742133799086,1.01840342,598.08,597.07,1.71425123]
[1742133799284,1.01840342,598.08,597.08,2.92616967]
[1742133799481,1.01840342,598.08,597.09,1.40670996]
[1742133799686,1.01840342,598.08,597.1,1.40670996]
[1742133799889,1.01840342,598.08,597.11,1.40670996]
[1742133800090,1.01840342,598.08,597.12,2.6186284]
[1742133800389,1.01840342,598.08,597.13,1.40670996]
[1742133800586,1.01840342,598.08,596.73,1.096]
[1742133800587,1.01840342,598.08,597.14,2.6186284]
[1742133800789,1.01840342,598.08,597.15,1.40670996]
[1742133800984,1.01840342,598.08,597.16,1.40670996]
[1742133801187,1.01840342,598.08,597.17,2.6186284]
[1742133801389,1.01840342,598.08,597.18,1.40670996]
[1742133801590,1.01840342,598.08,597.19,1.40670996]
[1742133801890,1.01840342,598.08,597.2,1.40670996]
[1742133802084,1.01840342,598.08,597.21,1.40670996]
[1742133802286,1.01840342,598.08,597.22,1.40670996]
[1742133802485,1.01840342,598.08,597.23,1.40670996]
[1742133802685,0.33440342,598.08,597.24,2.6186284]
[1742133802886,0.33440342,598.08,597.25,1.40670996]
[1742133803089,0.33440342,598.08,597.26,1.40502448]
[1742133803286,0.33440342,598.08,597.27,1.40502448]
[1742133803494,0.33440342,598.08,597.28,1.40502448]
[1742133803788,0.33440342,598.08,597.29,1.40502448]
[1742133803990,0.33440342,598.08,597.3,1.40502448]
[1742133804185,0.33440342,598.08,597.31,1.40502448]
[1742133804391,0.33440342,598.08,597.32,1.71242424]
[1742133804585,0.33440342,598.08,597.33,1.71242424]
[1742133804889,0.33440342,598.08,597.34,1.71242424]
[1742133805089,0.33440342,598.08,597.35,1.71242424]
[1742133805283,0.33440342,598.08,597.36,1.40502448]
[1742133805486,0.33440342,598.08,597.37,1.40502448]
[1742133805687,0.33440342,598.08,597.38,1.40502448]
[1742133805888,0.33440342,598.08,597.39,1.40502448]
[1742133806089,0.33440342,598.08,597.4,2.61694292]
[1742133806383,2.5233244,599.22,597.41,1.71237209]
[1742133806584,2.5233244,599.22,597.4,1.21191844]
[1742133806585,2.5233244,599.22,597.42,1.71237209]
[1742133806789,2.5233244,599.22,597.43,1.71237209]
[1742133806989,0.33377837,599.2,597.44,2.92429053]
[1742133807188,0.33377837,599.2,597.45,1.71237209]
[1742133807389,0.33377837,599.2,597.46,1.40502448]
[1742133807594,0.33377837,599.2,597.47,1.71237209]
[1742133807786,0.33377837,599.2,597.48,1.71237209]
[1742133807992,0.33377837,599.2,597.49,1.71237209]
[1742133808192,0.33377837,599.2,597.5,1.71237209]
[1742133808391,0.33377837,599.2,597.51,2.92164429]
[1742133808591,0.33377837,599.2,597.52,1.40237824]
[1742133808787,0.33377837,599.2,597.53,1.40237824]
[1742133808992,0.33377837,599.2,597.54,1.40237824]
[1742133809293,0.33377837,599.2,597.55,2.61429668]
[1742133809491,0.33377837,599.2,597.56,1.70965064]
[1742133809692,0.33377837,599.2,597.57,1.70965064]
[1742133809891,0.33377837,599.2,597.58,1.70965064]
[1742133810093,0.33377837,599.2,597.59,1.70965064]
[1742133810290,0.33377837,599.2,597.6,1.70965064]
[1742133810485,0.33377837,599.2,597.61,2.92156908]
[1742133810689,0.33377837,599.2,597.62,1.70965064]
[1742133810892,0.33377837,599.2,597.63,2.61429668]
[1742133811088,0.33377837,599.2,597.64,1.33971961]
[1742133811285,0.33377837,599.2,597.65,1.51913542]
[1742133811493,0.33377837,599.2,597.66,0.30721698]
[1742133812192,0.33377837,599.2,597.67,1.21191844]
[1742133812391,0.33377837,599.2,597.68,0.30721698]
[1742133812589,0.33377837,599.2,597.67,1.21191844]
[1742133812787,0.33377837,599.2,597.69,1.21191844]
[1742133813188,0.33377837,599.2,597.7,1.51916696]
[1742133813392,0.33377837,599.2,597.71,0.30724852]
[1742133813790,0.33377837,599.2,597.4,0.30724852]
[1742133814092,0.33377837,599.2,597.41,2.03238552]
[1742133814287,0.33377837,599.2,597.42,1.69760706]
[1742133814589,0.33377837,599.2,597.43,3.23547912]
[1742133814785,0.33377837,599.2,597.44,1.69758323]
[1742133814990,0.33377837,599.2,597.45,2.90068804]
[1742133815287,0.33377837,599.2,597.46,1.69758323]
[1742133815491,0.33377837,599.2,597.47,1.69758323]
[1742133815692,0.33377837,599.2,597.48,1.69758323]
[1742133815892,0.33377837,599.2,597.47,1.20310481]
[1742133815893,0.33377837,599.2,597.49,1.69758323]
[1742133816086,0.33377837,599.2,597.5,1.69758323]
[1742133816286,0.33377837,599.2,597.51,1.69758323]
[1742133816489,0.33377837,599.2,597.52,2.90068804]
[1742133816694,0.33377837,599.2,597.53,1.69758323]
[1742133816994,0.33377837,599.2,597.54,1.69758323]
[1742133817194,0.33377837,599.2,597.55,1.69758323]
[1742133817490,0.33377837,599.2,597.56,1.69758323]
[1742133817690,0.33377837,599.2,597.57,2.90068804]
[1742133817892,0.33377837,599.2,597.58,1.32956631]
[1742133818089,0.33377837,599.2,597.59,1.5103295]
[1742133818290,0.33377837,599.2,597.59,1.20310481]
[1742133818497,0.33377837,599.2,597.6,1.38587634]
[1742133818693,0.33377837,599.2,597.61,1.38587634]
[1742133818897,0.33377837,599.2,597.62,1.38587634]
[1742133819098,0.33377837,599.2,597.63,1.38587634]
[1742133819299,0.33377837,599.2,597.6,1.20310481]
[1742133819300,0.33377837,599.2,597.64,1.38587634]
[1742133819500,0.33377837,599.2,597.65,1.38587634]
[1742133819700,0.33377837,599.2,597.66,1.69302747]
[1742133819994,0.33377837,599.2,597.67,1.69300179]
[1742133820201,0.33377837,599.2,597.68,1.69300179]
[1742133820400,0.33377837,599.2,597.69,1.38587634]
[1742133820601,0.33377837,599.2,597.7,1.69300179]
[1742133820799,0.33377837,599.2,597.71,1.69300179]
[1742133820995,0.33377837,599.2,597.72,1.32628062]
[1742133821194,0.33377837,599.2,597.73,1.32628062]
[1742133821398,0.33377837,599.2,597.74,1.32628062]
[1742133821598,0.33377837,599.2,597.75,0.30712545]
[1742133821799,0.33377837,599.2,597.76,1.01700981]
[1742133821999,0.33377837,599.2,597.77,1.32413526]
[1742133822195,0.33377837,599.2,597.78,1.32413526]
[1742133822403,0.33377837,599.2,597.79,1.32413526]
[1742133822702,0.33377837,599.2,597.8,1.32413526]
[1742133822903,0.33377837,599.2,597.81,1.01700981]
[1742133823104,0.33377837,599.2,597.82,1.32413526]
[1742133823303,0.33377837,599.2,597.83,1.32304981]
[1742133823500,0.33377837,599.2,597.84,2.21902917]
[1742133823701,0.33377837,599.2,597.85,1.01588437]
[1742133823899,0.33377837,599.2,597.86,0.30708415]
[1742133824099,0.33377837,599.2,597.85,0.30708415]
[1742133824300,0.33377837,599.2,597.86,1.32239803]
[1742133824499,0.33377837,599.2,597.87,1.68777814]
[1742133824807,0.33377837,599.2,597.88,1.68777814]
[1742133825006,0.33377837,599.2,597.89,1.68777814]
[1742133825210,0.33377837,599.2,597.9,1.68777814]
[1742133825410,0.33377837,599.2,597.91,1.32239803]
[1742133825610,0.33377837,599.2,597.92,1.32239803]
[1742133825810,0.33377837,599.2,597.93,1.32239803]
[1742133826002,0.33377837,599.2,597.94,1.51018896]
[1742133826204,0.33377837,599.2,597.95,0.30708415]
[1742133826712,0.33377837,599.2,597.96,1.20310481]
[1742133826910,0.33377837,599.2,597.97,0.30708415]
[1742133827311,0.33377837,599.2,597.98,1.20310481]
[1742133827611,0.33377837,599.2,597.99,0.30703431]
[1742133828012,0.33377837,599.2,598.0,1.20310481]
[1742133828313,0.33377837,599.2,598.01,0.30703431]
[1742133829012,0.33377837,599.2,598.0,1.20310481]
[1742133829213,0.33377837,599.2,598.01,0.30708099]
[1742133830715,0.33377837,599.2,598.0,1.20310481]
[1742133830912,0.33377837,599.2,598.01,0.30708292]
[1742133831412,0.33377837,599.2,598.0,1.20310481]
[1742133831614,0.33377837,599.2,598.01,0.30708257]
[1742133832113,0.33377837,599.2,598.02,0.30708257]
[1742133832307,0.33377837,599.2,598.03,0.30708257]
[1742133832505,0.33377837,599.2,598.04,0.30708257]
[1742133832706,0.33377837,599.2,597.63,0.30708257]
[1742133832907,0.33377837,599.2,597.64,2.01877096]
[1742133833113,0.33377837,599.2,597.65,1.68412134]
[1742133833415,0.33377837,599.2,597.66,1.68412134]
[1742133833606,0.33377837,599.2,597.67,2.87561794]
[1742133833807,0.33377837,599.2,597.68,1.68412134]
[1742133834009,0.33377837,599.2,597.69,1.68412134]
[1742133834212,0.33377837,599.2,597.7,1.68412134]
[1742133834413,0.33377837,599.2,597.71,1.68412134]
[1742133834610,0.33377837,599.2,597.72,1.31953147]
[1742133834810,0.33377837,599.2,597.73,1.6838871]
[1742133835116,0.33377837,599.2,597.74,2.8753837]
[1742133835316,0.33377837,599.2,597.75,1.6838871]
[1742133835516,0.33377837,599.2,597.76,1.6838871]
[1742133835816,0.33377837,599.2,597.77,1.6838871]
[1742133836016,0.33377837,599.2,597.78,1.6838871]
[1742133836213,0.33377837,599.2,597.79,1.31953147]
[1742133836511,0.33377837,599.2,597.8,2.51102807]
[1742133836817,0.33377837,599.2,597.81,1.31924636]
[1742133837118,0.33377837,599.2,597.82,0.30708481]
[1742133837317,0.33377837,599.2,597.83,1.37629158]
[1742133837617,0.33377837,599.2,597.84,1.68337639]
[1742133837818,0.33377837,599.2,597.85,0.30708481]
[1742133838215,0.33377837,599.2,597.86,1.1914966]
[1742133838411,0.33377837,599.2,597.87,0.30708481]
[1742133838617,0.33377837,599.2,597.88,1.1914966]
[1742133838918,0.33377837,599.2,597.89,1.31913376]
[1742133839213,0.33377837,599.2,597.9,1.31913376]
[1742133839419,0.33377837,599.2,597.91,1.31913376]
[1742133839619,0.33377837,599.2,597.92,0.30708481]
[1742133839816,0.33377837,599.2,597.93,1.1914966]
[1742133840017,0.33377837,599.2,597.93,1.49852428]
[1742133840223,0.33377837,599.2,597.94,1.49852428]
[1742133840522,0.33377837,599.2,597.95,1.49852428]
[1742133840724,0.33377837,599.2,597.96,0.30702768]
[1742133841317,0.33377837,599.2,597.95,1.1914966]
[1742133841521,0.33377837,599.2,597.96,0.3070802]
[1742133841919,0.33377837,599.2,597.97,0.3070802]
[1742133842116,0.33377837,599.2,597.98,1.19105228]
[1742133842517,0.33377837,599.2,597.99,0.3070802]
[1742133842722,0.33377837,599.2,598.0,0.3070802]
[1742133842924,0.33377837,599.2,598.01,0.3070802]
[1742133843422,0.33377837,599.2,598.02,0.3070802]
[1742133843723,0.33377837,599.2,597.75,0.3070802]
[1742133843922,0.33377837,599.2,597.76,1.68437196]
[1742133844223,0.33377837,599.2,597.77,1.68437196]
[1742133844424,0.33377837,599.2,597.78,1.68437196]
[1742133844616,0.33377837,599.2,597.79,1.68437196]
[1742133844821,0.33377837,599.2,597.8,1.68437196]
[1742133845025,0.33377837,599.2,597.81,1.68436549]
[1742133845223,0.33377837,599.2,597.82,2.01891435]
[1742133845423,0.33377837,599.2,597.83,3.21116462]
[1742133845620,0.33377837,599.2,597.84,2.01890315]
[1742133845924,0.33377837,599.2,597.85,2.01889756]
[1742133846118,0.33377837,599.2,597.86,1.68436549]
[1742133846318,0.33377837,599.2,597.87,1.68436549]
[1742133846622,0.33377837,599.2,597.88,2.01888077]
[1742133846824,0.33377837,599.2,597.89,2.01887518]
[1742133847022,0.33377837,599.2,597.9,2.01886958]
[1742133847321,0.33377837,599.2,597.91,3.21111986]
[1742133847521,0.33377837,599.2,597.92,2.01885839]
[1742133847719,0.33377837,599.2,597.93,1.68436549]
[1742133847924,0.33377837,599.2,597.94,2.01884721]
[1742133848125,0.33377837,599.2,597.95,1.71196967]
[1742133848425,0.33377837,599.2,597.96,2.01892673]
[1742133848623,0.33377837,599.2,597.97,1.6844562]
[1742133848823,0.33377837,599.2,597.98,1.6844562]
[1742133849124,0.33377837,599.2,597.99,2.87671207]
[1742133849320,0.33377837,599.2,598.0,1.37749355]
[1742133849518,0.33377837,599.2,598.01,2.01889876]
[1742133849727,0.33377837,599.2,598.02,1.6844562]
[1742133849930,0.33377837,599.2,598.03,1.6844562]
[1742133850126,0.33377837,599.2,598.04,1.6844562]
[1742133850326,0.33377837,599.2,598.02,1.19225587]
[1742133850327,0.33377837,599.2,598.05,1.6844562]
[1742133850526,0.33377837,599.2,598.06,1.6844562]
[1742133850733,0.33377837,599.2,598.07,1.6844562]
[1742133850927,0.33377837,599.2,598.08,2.56974942]
[1742133851136,0.33377837,599.2,598.09,1.31998154]
[1742133851333,0.33377837,599.2,598.1,1.31998154]
[1742133851528,0.33377837,599.2,598.11,1.31998154]
[1742133851733,0.33377837,599.2,598.12,1.31998154]
[1742133851934,0.33377837,599.2,598.13,1.31998154]
[1742133852134,0.33377837,599.2,598.14,0.30696265]
[1742133852333,0.33377837,599.2,598.14,1.49921852]
[1742133852535,0.33377837,599.2,598.15,1.49921852]
[1742133852730,0.33377837,599.2,598.16,0.30696265]
[1742133853229,0.33377837,599.2,598.17,1.19225587]
[1742133853434,0.33377837,599.2,598.18,0.30696265]
[1742133853829,0.33377837,599.2,598.19,1.19225587]
[1742133854033,0.33377837,599.2,598.2,0.30694454]
[1742133854435,0.33377837,599.2,598.19,1.19225587]
[1742133854631,0.33377837,599.2,598.21,1.19225587]
[1742133855130,0.33377837,599.2,598.02,1.19225587]
[1742133855338,0.33377837,599.2,598.03,1.68852917]
[1742133855536,0.33377837,599.2,598.04,1.68852917]
[1742133855736,0.33377837,599.2,598.05,2.20826055]
[1742133855936,0.33377837,599.2,598.06,1.01600468]
[1742133856138,0.33377837,599.2,598.07,2.51606533]
[1742133856438,0.33377837,599.2,598.08,1.32380946]
[1742133856632,0.33377837,599.2,598.09,1.01682253]
[1742133856830,0.33377837,599.2,598.1,1.01682253]
[1742133857437,0.33377837,599.2,598.11,1.8656637]
[1742133857641,0.33377837,599.2,598.12,1.69023036]
[1742133857840,0.33377837,599.2,598.13,2.57551913]
[1742133858030,0.33377837,599.2,598.14,1.38326326]
[1742133858235,0.33377837,599.2,598.15,1.01844458]
[1742133858440,0.33377837,599.2,598.16,1.01916363]
[1742133858642,0.33377837,599.2,598.17,1.01916363]
[1742133858835,0.33377837,599.2,598.18,1.01916363]
[1742133859037,0.33377837,599.2,598.19,1.01916363]
[1742133859235,0.33377837,599.2,598.2,1.01916363]
[1742133859439,0.33377837,599.2,598.21,1.01916363]
[1742133859638,0.33377837,599.2,598.22,2.2114195]
[1742133859940,0.33377837,599.2,598.23,1.01916363]
[1742133860240,0.33377837,599.2,598.24,1.19225587]
[1742133860834,0.33377837,599.2,598.04,1.19225587]
[1742133861045,0.33377837,599.2,598.05,1.38747734]
[1742133861248,0.33377837,599.2,598.06,1.38747734]
[1742133861442,0.33377837,599.2,598.07,1.32739415]
[1742133861635,0.33377837,599.2,598.08,0.30702312]
[1742133861838,0.33377837,599.2,598.09,1.19225587]
[1742133862142,0.33377837,599.2,598.1,0.30702312]
[1742133862338,0.33377837,599.2,598.11,1.19225587]
[1742133862536,0.33377837,599.2,598.12,0.30702312]
[1742133863140,0.33377837,599.2,598.13,0.30702312]
[1742133863341,0.33377837,599.2,598.04,0.30702312]
[1742133863542,0.33377837,599.2,598.05,2.53498028]